Department family,Entity,Date,Expense type,Expense area,Supplier,Transaction number,Amount,VAT registration number
Dept of Health,MHRA,05/10/2020,Security,Operations,CIS Security Limited,39798,"51,530.63",206193092
Dept of Health,MHRA,05/10/2020,Infrastructure Services and Maintenance,"Technology, Digital, Data & Delivery",Hewlett Packard Enterprise,6093307,"730,134.89",314149679
Dept of Health,MHRA,05/10/2020,Help desk and end user support,"Technology, Digital, Data & Delivery",Insight Networking Solutions,4995903,"65,202.02",746075129
Dept of Health,MHRA,05/10/2020,"Service, Integration & Management (SIAM)","Technology, Digital, Data & Delivery",Redrock Consulting Ltd,9466,"177,806.11",862247715
Dept of Health,MHRA,07/10/2020,Contracted Out Services Miscellaneous,Directorate,Ernst & Young LLP,GB01G000123249,"140,802.00",773831408
Dept of Health,MHRA,07/10/2020,Accommodation Rent,Facilities & Estates,Government Property Agency,00000001/3543,"465,399.75",888801080
Dept of Health,MHRA,07/10/2020,Accommodation Rent,Facilities & Estates,Government Property Agency,00000001/3541,"95,448.75",888801080
Dept of Health,MHRA,07/10/2020,Accommodation Rent,Facilities & Estates,Government Property Agency,00000001/3542,"48,989.25",888801080
Dept of Health,MHRA,07/10/2020,Library & Periodical Subscriptions,Communications,LM Information Delivery,1547618,"37,837.97",112627053
Dept of Health,MHRA,07/10/2020,Assets Under Construction - Plant & Equipment,Operations,QIAGEN Ltd,96003333,"88,904.52",644373238
Dept of Health,MHRA,07/10/2020,"Service, Integration & Management - Portfolio Services","Technology, Digital, Data & Delivery",The DMW Group Limited,INV005981,"60,000.00",532495148
Dept of Health,MHRA,14/10/2020,Application Services and Maintenance,"Technology, Digital, Data & Delivery",Accenture (UK) Limited,3003483999,"350,734.07",788629066
Dept of Health,MHRA,14/10/2020,Application Services and Maintenance,"Technology, Digital, Data & Delivery",Accenture (UK) Limited,3003484300,"139,240.27",788629066
Dept of Health,MHRA,14/10/2020,Gas,Operations,Corona Energy Retail 4 Ltd,15577733,"26,548.56",577704800
Dept of Health,MHRA,14/10/2020,Electricity,Operations,EDF Energy,8474445,"84,731.55",523041202
Dept of Health,MHRA,14/10/2020,Assets Under Construction - Plant & Equipment,Operations,Parker Air Conditioning Ltd,INV25365,"58,510.80",506700965
Dept of Health,MHRA,14/10/2020,Software Development,"Technology, Digital, Data & Delivery",Red Badger Consulting Limited,1267,"132,405.00",990808582
Dept of Health,MHRA,14/10/2020,"Service, Integration & Management (SIAM)","Technology, Digital, Data & Delivery",Redrock Consulting Ltd,9497,"60,966.91",862247715
Dept of Health,MHRA,19/10/2020,Application Services and Maintenance,"Technology, Digital, Data & Delivery",Accenture (UK) Limited,3003484351,"120,740.80",788629066
Dept of Health,MHRA,19/10/2020,Lab Equipment Repairs and Maintenance,Operations,Beckman Coulter United Kingdom Ltd,4025485,"33,090.00",918561309
Dept of Health,MHRA,19/10/2020,"Service, Integration & Management - Enterprise Architecture","Technology, Digital, Data & Delivery",Ernst & Young LLP,GB01G000111151,"85,668.00",773831408
Dept of Health,MHRA,19/10/2020,Contracted Out Services Miscellaneous,"Technology, Digital, Data & Delivery",Redrock Consulting Ltd,9502,"46,170.00",862247715
Dept of Health,MHRA,19/10/2020,Contracted Out Services Miscellaneous,"Technology, Digital, Data & Delivery",Redrock Consulting Ltd,9514,"27,366.34",862247715
Dept of Health,MHRA,19/10/2020,Assets Under Construction - Clearing Account,"Technology, Digital, Data & Delivery",XMA Limited,KX32472,"37,705.32",115091937
Dept of Health,MHRA,21/10/2020,Application Services and Maintenance,"Technology, Digital, Data & Delivery",Accenture (UK) Limited,3003483997,"26,500.01",788629066
Dept of Health,MHRA,21/10/2020,Facilities Management & Portering,Facilities & Estates,Government Property Agency,00000001/4466,"197,114.00",888801080
Dept of Health,MHRA,21/10/2020,Accommodation Rates,Facilities & Estates,Government Property Agency,00000001/4466,"156,844.50",888801080
Dept of Health,MHRA,21/10/2020,Accommodation Service Charge,Facilities & Estates,Government Property Agency,00000001/4466,"65,407.25",888801080
Dept of Health,MHRA,21/10/2020,Electricity,Facilities & Estates,Government Property Agency,00000001/4466,"50,862.25",888801080
Dept of Health,MHRA,21/10/2020,Facilities Management & Portering,Facilities & Estates,Government Property Agency,00000001/4464,"40,426.00",888801080
Dept of Health,MHRA,21/10/2020,Accommodation Rates,Facilities & Estates,Government Property Agency,00000001/4464,"32,167.25",888801080
Dept of Health,MHRA,21/10/2020,Facilities Management & Portering,Facilities & Estates,Government Property Agency,00000001/4465,"20,748.75",888801080
Dept of Health,MHRA,21/10/2020,Accommodation Rates,Facilities & Estates,Government Property Agency,00000001/4465,"16,510.00",888801080
Dept of Health,MHRA,21/10/2020,Accommodation Service Charge,Facilities & Estates,Government Property Agency,00000001/4464,"13,414.50",888801080
Dept of Health,MHRA,21/10/2020,Infrastructure Services and Maintenance,Facilities & Estates,Government Property Agency,00000001/4466,"10,952.25",888801080
Dept of Health,MHRA,21/10/2020,Electricity,Facilities & Estates,Government Property Agency,00000001/4464,"10,431.25",888801080
Dept of Health,MHRA,21/10/2020,Accommodation Service Charge,Facilities & Estates,Government Property Agency,00000001/4465,"6,885.00",888801080
Dept of Health,MHRA,21/10/2020,Electricity,Facilities & Estates,Government Property Agency,00000001/4465,"5,354.00",888801080
Dept of Health,MHRA,21/10/2020,Infrastructure Services and Maintenance,Facilities & Estates,Government Property Agency,00000001/4464,"2,246.25",888801080
Dept of Health,MHRA,21/10/2020,Infrastructure Services and Maintenance,Facilities & Estates,Government Property Agency,00000001/4465,"1,152.75",888801080
Dept of Health,MHRA,21/10/2020,Infrastructure Services and Maintenance,"Technology, Digital, Data & Delivery",NTT Data UK Ltd,4017228,"185,896.90",159334590
Dept of Health,MHRA,21/10/2020,Infrastructure Services and Maintenance,"Technology, Digital, Data & Delivery",NTT Data UK Ltd,4017236,"50,000.00",159334590
Dept of Health,MHRA,26/10/2020,Application Services and Maintenance,"Technology, Digital, Data & Delivery",Red Ant Digital Ltd,INV-08407,"30,000.00",123388322
Dept of Health,MHRA,26/10/2020,Contracted Out Services Miscellaneous,"Technology, Digital, Data & Delivery",Redrock Consulting Ltd,9529,"62,316.29",862247715
Dept of Health,MHRA,26/10/2020,Contracted Out Services Miscellaneous,"Technology, Digital, Data & Delivery",The DMW Group Limited,INV006042,"118,134.00",532495148
Dept of Health,MHRA,28/10/2020,Contracted Out Services Miscellaneous,Directorate,Ernst & Young LLP,GB01G000129146,"259,800.00",773831408
Dept of Health,MHRA,28/10/2020,Solicitors,Policy,Government Legal Department,A3111,"279,900.00",888823066
Dept of Health,MHRA,28/10/2020,Contracted Out Services Miscellaneous,Vigilance and Risk Management of Medicines,Red Ant Digital Ltd,INV-08454,"57,840.00",123388322
Dept of Health,MHRA,28/10/2020,Contracted Out Services Miscellaneous,"Technology, Digital, Data & Delivery",Redrock Consulting Ltd,9528,"129,575.30",862247715
Dept of Health,MHRA,28/10/2020,Contracted Out Services Miscellaneous,"Technology, Digital, Data & Delivery",Redrock Consulting Ltd,9527,"37,403.88",862247715
